lending/lending_fUSD_20240908
["ID","MTS","AMOUNT","RATE_DAILY","PERIOD"]
[337574898,1725833446925,-464.08707814,0.00013,2]
[337574899,1725833446939,-7000.092765,0.00013,2]
[337574900,1725833446950,-17614.77864084,0.00013,2]
[337574901,1725833446962,-392.18531531,0.00013,2]
[337574902,1725833446978,-1269.51983804,0.00013,2]
[337574903,1725833446999,-335.23446328,0.00013,2]
[337574904,1725833447010,-1078.57073008,0.00013,2]
[337574905,1725833447032,-2800.21661438,0.00013,2]
[337574906,1725833588482,750.0,0.00011,2]
[337574907,1725833658461,1265.9,0.00012179,2]
[337574908,1725833713617,168.73,0.00012031,2]
[337574909,1725833754625,306.07,0.00012008,2]
[337574910,1725833853518,160.23,0.00010959,2]
[337574911,1725833877251,199.25,0.00012096,2]
[337574912,1725833914570,200.0,0.00012042,2]
[337574913,1725833939293,500.73,0.00010123,2]
[337574914,1725833939508,500.73,0.00012387,2]
[337574915,1725833940616,250.0,0.00012041,2]
[337574916,1725833985721,200.0,0.00011958,2]
[337574917,1725834024706,250.0,0.00011925,2]
[337574918,1725834080096,154.27,0.00011968,2]
[337574919,1725834080126,154.27,0.00011974,2]
[337574920,1725834080158,154.27,0.00011979,2]
[337574921,1725834080245,154.27,0.00011985,2]
[337574922,1725834080474,154.27,0.0001199,2]
[337574923,1725834080698,154.27,0.00011996,2]
[337574924,1725834080930,154.27,0.00012001,2]
[337574925,1725834081153,154.27,0.00012007,2]
[337574926,1725834081373,154.27,0.00012012,2]
[337574927,1725834081614,154.27,0.00012018,2]
[337574928,1725834081846,154.27,0.00012023,2]
[337574929,1725834082059,154.27,0.00012028,2]
[337574930,1725834248131,171.37,0.00012289,2]
[337574931,1725834303327,153.03,0.00012323,2]
[337574934,1725834430235,1891.8789498,0.000123,2]
[337574935,1725834439203,840.0,0.00012375,2]
[337574936,1725834454695,380.94,0.00012374,2]
[337574957,1725834526122,-712.28723129,0.00012657,2]
[337574958,1725834599225,450.65,0.00010382,2]
[337574959,1725834600357,-450.65,0.00012646,2]
[337574960,1725834600385,-990.71276871,0.00012657,2]
[337574961,1725834600414,-421.34449989,0.00012658,2]
[337574962,1725834600442,-1843.4793314,0.0001277,2]
[337574981,1725834632213,-258.5204686,0.0001277,2]
[337574983,1725834632223,-657.98121651,0.0001287,2]
[337574985,1725834632235,-853.48878349,0.0001287,2]
[337574987,1725834632244,-2758.47614,0.0001287,2]
[337574988,1725834632254,-774.76771504,0.0001289,2]
[337574989,1725834632264,-1000.0,0.00012893,2]
[337574990,1725834632273,-481.865,0.00012893,2]
[337574991,1725834632283,-174.16952652,0.000129,2]
[337574992,1725834632294,-171.72522308,0.000129,2]
[337574993,1725834632304,-197.51845,0.000129,2]
[337574994,1725834632313,-4612.18916187,0.000129,2]
[337574995,1725834632325,-482.99531256,0.000129,2]
[337574996,1725834632345,-594.47658,0.000129,2]
[337574997,1725834632364,-1446.28093608,0.000129,2]
[337574998,1725834632379,-16504.787533,0.000129,2]
[337574999,1725834632395,-433.3112172,0.000129,2]
[337575000,1725834632411,-377.86782155,0.000129,2]
[337575001,1725834632430,-13833.782746,0.000129,2]
[337575002,1725834632446,-2866.79326602,0.000129,2]
[337575003,1725834632464,-727.73898001,0.000129,2]
[337575004,1725834632492,-561.75930824,0.000129,2]
[337575005,1725834632508,-10708.55963747,0.000129,2]
[337575006,1725834632523,-335.4322,0.000129,2]
[337575008,1725834632536,-160.36941333,0.000129,2]
[337575010,1725834632549,-1948.07315282,0.000129,2]
[337575012,1725834632562,-168.42087583,0.000129,2]
[337575015,1725834632576,-323.45769541,0.000129,2]
[337575017,1725834632590,-997.64935967,0.000129,2]
[337575019,1725834632604,-499.99,0.00012973,2]
[337575020,1725834632620,-500.0,0.00012973,2]
[337575021,1725834632635,-151.54,0.0001299,2]
[337575022,1725834632648,-285.53399046,0.00012999,2]
[337575023,1725834632661,-343.61090306,0.00012999,2]
[337575037,1725834638236,-1126.156206,0.00012893,2]
[337575038,1725834638248,-780.20841318,0.00012999,2]
[337575039,1725834638261,-41133.63538082,0.00013,2]
[337575040,1725834638274,-55351.61594918,0.00013,2]
[337575041,1725834638287,-12851.8,0.00013,2]
[337575042,1725834638303,-1710.00000005,0.00013,2]
[337575043,1725834638317,-1351.70136552,0.00013,2]
[337575044,1725834638331,-7654.46792279,0.00013,2]
[337575087,1725834638971,-8761.63231516,0.00013,2]
[337575091,1725834639003,-758.11221771,0.00013,2]
[337575094,1725834639019,-1200.0,0.00013,2]
[337575096,1725834639031,-339.1733676,0.00013,2]
[337575098,1725834639042,-424.50501058,0.00013,2]
[337575100,1725834639056,-1005.35069001,0.00013,2]
[337575103,1725834639067,-1044.71571817,0.00013,2]
[337575105,1725834639077,-705.3146958,0.00013,2]
[337575229,1725834640275,-3419.99457149,0.00013,2]
[337575242,1725834640424,-430.83949475,0.00013,2]
[337575244,1725834640435,-1904.70340738,0.00013,2]
[337575253,1725834640507,-1703.23587765,0.00013,2]
[337575256,1725834640525,-823.6447152,0.00013,2]
[337575258,1725834640536,-4418.27904456,0.00013,2]
[337575260,1725834640549,-1048.248,0.00013,2]
[337575505,1725834643173,-5530.99838,0.00013,2]
[337575508,1725834643184,-594.17,0.00013,2]
[337575512,1725834643195,-1399.85650094,0.00013,2]
[337575545,1725834643339,-3306.57220751,0.00013,2]
[337575547,1725834643350,-45818.01731147,0.00013,2]
[337575549,1725834643361,-171332.00000002,0.00013,2]
[337575571,1725834643559,-1992.01284,0.00013,2]
[337575574,1725834643571,-9308.27000008,0.00013,2]
[337575576,1725834643582,-1056.06830296,0.00013,2]
[337575853,1725834646296,-466.67471764,0.00013,2]
[337575855,1725834646310,-940.87063428,0.00013,2]
[337575954,1725834647233,-2604.9921,0.00013,2]
[337575956,1725834647244,-509.57598403,0.00013,2]
[337575958,1725834647255,-1304.84012138,0.00013,2]
[337575960,1725834647266,-4267.71555753,0.00013,2]
[337575962,1725834647278,-321.57326354,0.00013,2]
[337575965,1725834647289,-526.65781695,0.00013,2]
[337576350,1725834682875,5159.91,0.000125,2]
[337576351,1725834691295,881.61,0.00010959,2]
[337576352,1725834862963,155.67,0.00011966,2]
[337576353,1725834891139,151.64,0.00010959,2]
[337576354,1725834928607,250.0,0.00011962,2]
[337576355,1725835005563,2594.39,0.00012057,2]
[337576356,1725835014573,250.0,0.0001199,2]
[337576357,1725835044418,173.69,0.00011964,2]
[337576358,1725835080182,451.91,0.00010036,2]
[337576359,1725835080413,451.91,0.000123,2]
[337576360,1725835136062,250.91,0.0001195,2]
[337576361,1725835136207,297.49,0.00011939,2]
[337576362,1725835217806,1000.0,0.0001193,2]
[337576363,1725835274055,6001.0,0.000125,2]
[337576364,1725835275275,1467.27,0.00011942,2]
[337576365,1725835283758,1239.01,0.00011938,2]
[337576366,1725835385036,275.99,0.00011926,2]
[337576367,1725835416172,500.0,0.00026,120]
[337576368,1725835477588,275.32,0.00010959,2]
[337576369,1725835502452,250.0,0.00011931,2]
[337576370,1725835540028,897.2578074,0.00012185,2]
[337576371,1725835558661,154.0,0.0001193,2]
[337576372,1725835565176,250.0,0.0001193,2]
[337576373,1725835566017,171.37,0.0001193,2]
[337576374,1725835638970,551.33,0.00011929,2]
[337576375,1725835738433,200.0,0.00011932,2]
[337576383,1725835831435,-1117.9555873,0.00012723,2]
[337576384,1725835831448,-382.0444127,0.00012723,2]
[337576385,1725835831458,-75.24728809,0.00012736,2]
[337576386,1725835831469,-263.41026238,0.00012736,2]
[337576387,1725835831483,-344.40721085,0.00012736,2]
[337576388,1725835831500,-438.97982347,0.00012736,2]
[337576389,1725835831632,-377.95541521,0.00012736,2]
[337576390,1725835831643,-150.0,0.00012775,2]
[337576391,1725835831654,-150.0,0.0001278,2]
[337576392,1725835831664,-1432.2010991,0.000128,2]
[337576395,1725835837449,-484.81031023,0.000128,2]
[337576396,1725835837459,-150.0,0.00012813,2]
[337576397,1725835837469,-150.0,0.00012852,2]
[337576398,1725835837478,-150.0,0.00012862,2]
[337576399,1725835837487,-499.99,0.00012869,2]
[337576400,1725835837496,-300.0,0.00012869,2]
[337576401,1725835837506,-2758.47614,0.0001287,2]
[337576402,1725835837518,-175.6819242,0.0001287,2]
[337576403,1725835837527,-150.0,0.00012871,2]
[337576404,1725835837536,-150.0,0.00012872,2]
[337576405,1725835837547,-224.41004049,0.00012875,2]
[337576406,1725835837557,-150.0,0.00012881,2]
[337576407,1725835837567,-150.0,0.00012887,2]
[337576408,1725835837576,-150.0,0.00012889,2]
[337576409,1725835837586,-6285.81278106,0.00012896,2]
[337576410,1725835837597,-1079.34910173,0.00012896,2]
[337576411,1725835837609,-5200.0,0.00012896,2]
[337576412,1725835837621,-2969.04,0.00012896,2]
[337576413,1725835837633,-914.81898883,0.00012896,2]
[337576414,1725835837644,-882.6,0.00012896,2]
[337576415,1725835837655,-796.44791203,0.00012896,2]
[337576416,1725835837670,-618.75914436,0.00012896,2]
[337576417,1725835837682,-1569.87199184,0.00012896,2]
[337576418,1725835837693,-22537.18002361,0.00012896,2]
[337576419,1725835837704,-450.95372915,0.00012896,2]
[337576420,1725835837722,-3060.15071266,0.00012896,2]
[337576421,1725835837734,-420.0,0.00012896,2]
[337576422,1725835837746,-9987.90608371,0.00012896,2]
[337576423,1725835837757,-16365.39999998,0.00012896,2]
[337576424,1725835837771,-433.77508484,0.00012896,2]
[337576425,1725835837783,-537.0,0.00012896,2]
[337576426,1725835837797,-3762.9681196,0.00012896,2]
[337576427,1725835837809,-3046.44353018,0.00012896,2]
[337576428,1725835837827,-515.37635187,0.00012896,2]
[337576429,1725835837839,-21492.84534455,0.00012896,2]
[337576430,1725835837849,-2061.3839,0.00012896,2]
[337576431,1725835837859,-7790.964,0.00012896,2]
[337576432,1725835837869,-890.0995,0.00012899,2]
[337576433,1725835837878,-2723.37763568,0.000129,2]
[337576447,1725835839528,-2566.87366361,0.000129,2]
[337576448,1725835839539,-1194.35436196,0.000129,2]
[337576449,1725835839550,-3576.667628,0.000129,2]
[337576450,1725835839649,-9497.90671075,0.000129,2]
[337576451,1725835839658,-9994.0787,0.000129,2]
[337576452,1725835839668,-176.60914666,0.000129,2]
[337576453,1725835839677,-159.85984813,0.000129,2]
[337576454,1725835839687,-246.0840169,0.000129,2]
[337576455,1725835839697,-150.0,0.000129,2]
[337576456,1725835839707,-2758.47615,0.000129,2]
[337576457,1725835839716,-1000.0,0.000129,2]
[337576458,1725835839726,-158.39331482,0.000129,2]
[337576459,1725835839737,-171.25223682,0.000129,2]
[337576460,1725835839747,-2038.9059,0.000129,2]
[337576461,1725835839757,-157.63939403,0.000129,2]
[337576462,1725835839768,-164.7955,0.000129,2]
[337576463,1725835839779,-189.55387216,0.000129,2]
[337576464,1725835839793,-14913.48481858,0.000129,2]
[337576465,1725835839802,-150.0,0.00012906,2]
[337576466,1725835839812,-150.0,0.00012909,2]
[337576467,1725835839822,-150.0,0.00012919,2]
[337576468,1725835839832,-2758.47614,0.0001293,2]
[337576469,1725835839842,-150.0,0.00012952,2]
[337576470,1725835839852,-150.0,0.00012953,2]
[337576471,1725835839861,-1000.0,0.0001297,2]
[337576472,1725835839871,-500.0,0.00012973,2]
[337576474,1725835839880,-150.0,0.0001298,2]
[337576476,1725835839890,-151.48,0.0001299,2]
[337576478,1725835839899,-4211.571421,0.00012998,2]
[337576480,1725835839909,-1298.91557238,0.00012999,3]
[337576482,1725835839919,-1298.91557239,0.00012999,3]
[337576484,1725835839928,-281.47164508,0.00012999,2]
[337576486,1725835839937,-150.0,0.00012999,2]
[337576488,1725835839948,-763.0,0.00013,2]
[337576490,1725835839957,-27059.4499229,0.00013,2]
[337576504,1725835840077,-10741.93987712,0.00013,2]
[337576506,1725835840089,-164759.58521206,0.00013,2]
[337576508,1725835840100,-2727.62255209,0.00013,2]
[337576510,1725835840111,-84571.99702213,0.00013,2]
[337576512,1725835840123,-55007.67545956,0.00013,2]
[337576515,1725835840134,-4026.44936994,0.00013,2]
[337576517,1725835840145,-5184.20181618,0.00013,2]
[337576519,1725835840155,-1032.75,0.00013,2]
[337576665,1725835841739,742.0,0.00011929,2]
[337576721,1725835842522,-439940.00000029,0.00013,2]
[337576735,1725835843178,-2771.07248887,0.00013,2]
[337576736,1725835843189,-24316.15217227,0.00013,2]
[337576737,1725835843199,-31102.00117109,0.00013,2]
[337576738,1725835843211,-987.84,0.00013,2]
[337576741,1725835845490,-38114.69589832,0.00013,2]
[337576742,1725835845500,-69820.36257427,0.00013,2]
[337576743,1725835845522,-19999.982619,0.00013,2]
[337576744,1725835845534,-7753.58326954,0.00013,2]
[337576745,1725835845729,-12970.78378846,0.00013,2]
[337576746,1725835858330,497.83,0.00010729,2]
[337576747,1725835927402,1599.9,0.00012412,2]
[337576748,1725835933261,250.0,0.0001241,2]
[337576749,1725835954257,154.81,0.00010959,2]
[337576750,1725835954458,6832.67,0.00012368,2]
[337576751,1725836007332,250.0,0.00012257,2]
[337576752,1725836015105,200.0,0.00027659,120]
[337576753,1725836157901,275.66,0.00012295,2]
[337576754,1725836207269,153.66,0.00012188,2]
[337576755,1725836207480,153.66,0.00012194,2]
[337576756,1725836207722,153.66,0.00012201,2]
[337576757,1725836207953,153.66,0.00012208,2]
[337576758,1725836208562,153.66,0.00012215,2]
[337576759,1725836213149,153.66,0.00012221,2]
[337576760,1725836213183,153.66,0.00012228,2]
[337576761,1725836213216,153.66,0.00012235,2]
[337576762,1725836213260,153.66,0.00012242,2]
[337576763,1725836213465,153.66,0.00012248,2]
[337576764,1725836273625,840.0,0.000122,2]
[337576765,1725836376131,1885.52,0.00012263,2]
[337576766,1725836386859,558.19,0.00010317,2]
[337576767,1725836400085,153.03,0.00012189,2]
[337576768,1725836442030,159.04,0.00010959,2]
[337576769,1725836463886,526.0,0.00028,120]
[337576770,1725836503000,250.0,0.0001226,2]
[337576771,1725836591800,3455.609922,0.00012,2]
[337576773,1725836760071,328.0,0.0001207,2]
[337576774,1725836789988,275.66,0.00012094,2]
[337576775,1725836792991,3600.0,0.00025,60]
[337576776,1725836805895,10000.0,0.00028,120]
[337576777,1725836821145,5241.0,0.00028,120]
[337576778,1725836875255,530.28,0.00010301,2]
[337576779,1725836982662,152.21,0.00010959,2]
[337576780,1725837024383,514.7,0.00028,120]
[337576784,1725837031587,-530.28,0.00012565,2]
[337576785,1725837031597,-161.0,0.00012622,2]
[337576786,1725837031606,-276.0,0.00012698,2]
[337576787,1725837031616,-391.21861396,0.00012772,2]
[337576788,1725837031626,-1064.61210359,0.000128,2]
[337576789,1725837031638,-1966.30289641,0.000128,2]
[337576790,1725837031648,-150.0,0.00012839,2]
[337576791,1725837031657,-1882.15900085,0.00012873,2]
[337576792,1725837031667,-499.99,0.00012873,2]
[337576793,1725837031677,-300.0,0.00012878,2]
[337576794,1725837031687,-6110.61184805,0.00012879,2]
[337576795,1725837031698,-31094.57336559,0.00012879,2]
[337576796,1725837031714,-7662.48319022,0.00012879,2]
[337576797,1725837031725,-462.53216332,0.00012879,2]
[337576798,1725837031738,-16014.28344761,0.00012879,2]
[337576799,1725837031747,-851.55997,0.00012888,2]
[337576800,1725837031758,-275.14,0.00012888,2]
[337576801,1725837031769,-177.1579,0.00012898,2]
[337576802,1725837032095,-5084.8001,0.00012898,2]
[337576803,1725837032127,-45268.7053,0.00012899,2]
[337576804,1725837032136,-171.25223681,0.000129,2]
[337576805,1725837032146,-176.70507134,0.000129,2]
[337576806,1725837032155,-234.40170082,0.000129,2]
[337576807,1725837032164,-157.40526554,0.000129,2]
[337576808,1725837032174,-10263.00680818,0.000129,2]
[337576809,1725837032183,-163.67346564,0.000129,2]
[337576810,1725837032192,-388.92563463,0.00012973,2]
[337576811,1725837032201,-500.0,0.00012973,2]
[337576812,1725837032210,-171.08649104,0.0001299,2]
[337576813,1725837032220,-151.48,0.0001299,2]
[337576814,1725837032233,-2535.9996551,0.00012994,2]
[337576815,1725837032243,-4144.014094,0.00012994,2]
[337576816,1725837032252,-4601.0304571,0.00012994,2]
[337576817,1725837032261,-1905.1583212,0.00012994,2]
[337576818,1725837032274,-211.10373381,0.00012999,2]
[337576819,1725837032284,-812.0,0.00013,2]
[337576820,1725837032293,-387813.64313847,0.00013,2]
[337576821,1725837032307,-6009.42802569,0.00013,2]
[337576822,1725837032322,-153385.55194873,0.00013,2]
[337576823,1725837032334,-11506.71936319,0.00013,2]
[337576824,1725837032345,-883.54995,0.00013,2]
[337576825,1725837032356,-846.47,0.00013,2]
[337576826,1725837032367,-350.2299999,0.00013,2]
[337576827,1725837032378,-51281.32712503,0.00013,2]
[337576828,1725837032389,-1443.6854515,0.00013,2]
[337576829,1725837032401,-10730.55001468,0.00013,2]
[337576830,1725837032412,-10977.721407,0.00013,2]
[337576831,1725837032430,-890.47985644,0.00013,2]
[337576832,1725837032443,-743.12178504,0.00013,2]
[337576833,1725837032454,-2553.19999998,0.00013,2]
[337576834,1725837032465,-534.83187124,0.00013,2]
[337576835,1725837032476,-3746.47766171,0.00013,2]
[337576836,1725837032512,344.8,0.0001226,2]
[337576837,1725837037622,-5396.8,0.00013,2]
[337576838,1725837037635,-11247.48919341,0.00013,2]
[337576839,1725837037647,-6903.18681663,0.00013,2]
[337576840,1725837037658,-5295.04283732,0.00013,2]
[337576841,1725837037672,-287.75747,0.00013,2]
[337576842,1725837037803,-582557.48094435,0.00013,2]
[337576843,1725837037815,-461.545,0.00013,2]
[337576844,1725837037844,-27245.02591253,0.00013,2]
[337576889,1725837039634,-2276.6173036,0.00013,2]
[337576890,1725837039646,-269672.70518086,0.00013,2]
[337576891,1725837039657,-400.07483383,0.00013,2]
[337576892,1725837039668,-745.83403878,0.00013,2]
[337576893,1725837039679,-5464.19112739,0.00013,2]
[337576894,1725837039811,-445.20549256,0.00013,2]
[337576895,1725837039859,-546.27762,0.00013,2]
[337576896,1725837039871,-255.8277193,0.00013,2]
[337576902,1725837042709,-679.0,0.00013,2]
[337576903,1725837042719,-26793.597784,0.00013,2]
[337576962,1725837043560,-123065.06058811,0.00013,2]
[337576965,1725837046002,-6924.6,0.00013,2]
[337576966,1725837046013,-6196.68276554,0.00013,2]
[337576967,1725837046024,-299.2523,0.00013,2]
[337577122,1725837082469,779.07,0.00010959,2]
[337577123,1725837179930,14611.1565,0.00012465,2]
[337577124,1725837192947,750.0,0.00011,2]
[337577126,1725837405892,558.67,0.00010546,2]
[337577127,1725837423851,1150.9,0.00012464,2]
[337577128,1725837430553,153.66,0.00012464,2]
[337577129,1725837500244,554.84,0.00012421,2]
[337577130,1725837656358,8599.31,0.00012466,2]
[337577131,1725837706728,750.0,0.00012321,2]
[337577132,1725837708991,151.64,0.00010959,2]
[337577133,1725837734721,2911.8,0.00012418,2]
[337577134,1725837736070,3117.23014258,0.00012435,2]
[337577135,1725837741009,3117.23014257,0.0001246,2]
[337577136,1725837746012,3117.23014257,0.00012485,2]
[337577137,1725837747292,542.84,0.00012418,2]
[337577138,1725837773158,262.4,0.00012335,2]
[337577139,1725837810494,2715.52,0.00012421,2]
[337577140,1725837812997,380.14,0.00012472,2]
[337577141,1725837813971,500.0,0.00025,120]
[337577142,1725837922258,450.0,0.00012334,2]
[337577143,1725837923339,615.84,0.00010507,2]
[337577144,1725838004110,2000.0,0.00012383,2]
[337577145,1725838099605,290.50593626,0.000125,2]
[337577146,1725838110426,150.0,0.00012182,2]
[337577150,1725838159373,9277.21,0.00012222,2]
[337577151,1725838167036,-160.68,0.00012525,2]
[337577153,1725838167064,-170.78,0.0001253,2]
[337577154,1725838167091,-250.0,0.00012535,2]
[337577155,1725838167121,-155.2,0.00012641,2]
[337577156,1725838167148,-300.0,0.00012682,2]
[337577157,1725838167175,-4848.75398015,0.00012683,2]
[337577161,1725838202777,261.54,0.00010959,2]
[337577164,1725838226219,1493.98,0.00012351,2]
[337577165,1725838227391,250.0,0.00012351,2]
[337577173,1725838231751,-160.68,0.00012673,2]
[337577174,1725838231763,-150.0,0.00012683,2]
[337577175,1725838231772,-150.0,0.00012683,2]
[337577176,1725838231782,-150.0,0.00012683,2]
[337577178,1725838231791,-150.0,0.00012683,2]
[337577180,1725838231802,-150.0,0.00012683,2]
[337577182,1725838231811,-150.0,0.00012683,2]
[337577183,1725838231821,-737.6,0.00012684,2]
[337577184,1725838231831,-615.84,0.00012771,2]
[337577185,1725838231840,-160.68,0.00012789,2]
[337577186,1725838231850,-934.19,0.00012799,2]
[337577187,1725838231862,-469.02406266,0.00012799,2]
[337577188,1725838231873,-291.65,0.00012799,2]
[337577189,1725838231888,-5579.854575,0.00012799,2]
[337577190,1725838231899,-620.38007723,0.00012799,2]
[337577191,1725838231910,-1483.46328593,0.00012799,2]
[337577192,1725838231929,-1223.98741961,0.00012799,2]
[337577193,1725838231943,-391.21861397,0.00012866,2]
[337577194,1725838231952,-499.99,0.0001287,2]
[337577195,1725838231963,-89.50839016,0.0001289,2]
[337577196,1725838231990,-71.17160984,0.0001289,2]
[337577197,1725838232001,-160.68,0.0001289,2]
[337577198,1725838232011,-2315.1751,0.000129,2]
[337577199,1725838232022,-187.52136064,0.000129,2]
[337577200,1725838232033,-1740.96454264,0.000129,2]
[337577201,1725838232042,-6842.00453878,0.000129,2]
[337577202,1725838232052,-328.88542695,0.000129,2]
[337577203,1725838232062,-439.929,0.00012994,2]
[337577204,1725838232071,-950.27951124,0.00012995,2]
[337577205,1725838232086,-415.22091175,0.00012995,2]
[337577206,1725838232098,-794.13179765,0.00012995,2]
[337577207,1725838232112,-636.97482507,0.00012995,2]
[337577210,1725838235710,250.0,0.00012345,2]
[337577220,1725838237757,-726.43028103,0.00012995,2]
[337577221,1725838237869,-6445.5,0.00012995,2]
[337577233,1725838238216,-1002.75257996,0.00012995,2]
[337577234,1725838238229,-4156.79771359,0.00012995,2]
[337577235,1725838238250,-1281.17941041,0.00012995,2]
[337577243,1725838240030,-611.11,0.00012995,2]
[337577244,1725838240042,-45542.4128972,0.00012995,2]
[337577245,1725838240054,-1443.53392705,0.00012995,2]
[337577246,1725838240067,-3280.56012288,0.00012995,2]
[337577247,1725838240079,-529.7210109,0.00012995,2]
[337577248,1725838240090,-11881.20386457,0.00012995,2]
[337577249,1725838240100,-211.10373381,0.00012999,2]
[337577250,1725838240110,-602.0,0.00013,2]
[337577251,1725838240119,-782583.73589381,0.00013,2]
[337577252,1725838240131,-308644.59859788,0.00013,2]
[337577253,1725838240142,-131197.9739836,0.00013,2]
[337577254,1725838240151,-33904.13128432,0.00013,2]
[337577255,1725838240163,-6992.18,0.00013,2]
[337577256,1725838240201,-5710.61751096,0.00013,2]
[337577257,1725838240212,-573.16626518,0.00013,2]
[337577258,1725838240225,-2920.81594224,0.00013,2]
[337577281,1725838242842,-27543.38428764,0.00013,2]
[337577283,1725838242855,-2488.55910474,0.00013,2]
[337577285,1725838242866,-975.63018824,0.00013,2]
[337577288,1725838242878,-13423.64513516,0.00013,2]
[337577290,1725838242888,-4285.0,0.00013,2]
[337577291,1725838242900,-482.99999997,0.00013,2]
[337577295,1725838244091,-851.90336111,0.00013,2]
[337577296,1725838244112,-22184.97987689,0.00013,2]
[337577297,1725838244123,-9225.0,0.00013,2]
[337577310,1725838245864,-577715.66387684,0.00013,2]
[337577312,1725838245875,-786.04464485,0.00013,2]
[337577313,1725838245887,-3023.2344,0.00013,2]
[337577314,1725838245900,-107953.98348015,0.00013,2]
[337577315,1725838247282,-5320.9854,0.00012584,2]
[337577316,1725838247292,-126916.91771987,0.00013,2]
[337577317,1725838247309,-114114.04838944,0.00013,2]
[337577318,1725838247382,-44895.39779523,0.00013,2]
[337577321,1725838442710,594.8,9.839e-05,2]
[337577322,1725838442927,594.8,0.00012103,2]
[337577323,1725838478214,8015.38,0.00011735,2]
[337577324,1725838690946,306.88,0.00011747,2]
[337577325,1725838699679,197.11,0.00011747,2]
[337577326,1725838746261,250.0,0.00011704,2]
[337577327,1725838795518,250.0,0.00011704,2]
[337577328,1725838802476,150.0,0.00011704,2]
[337577329,1725838802668,150.0,0.00011704,2]
[337577330,1725838802853,1350.0,0.00012039,2]
[337577331,1725838808572,150.0,0.00011704,2]
[337577332,1725838808989,150.0,0.00011704,2]
[337577333,1725838809148,150.0,0.00011704,2]
[337577334,1725838809363,150.0,0.00011704,2]
[337577335,1725838809565,296.0,0.00011704,2]
[337577337,1725838845639,659.39433149,0.00012455,2]
[337577338,1725838850578,659.39433149,0.00012457,2]
[337577339,1725838855637,659.39433149,0.00012458,2]
[337577340,1725838865880,310.1,0.00011712,2]
[337577342,1725838893320,868.9595,0.00012464,2]
[337577343,1725838955975,195.46,0.00011816,2]
[337577344,1725838956184,195.46,0.00011819,2]
[337577345,1725838956382,195.46,0.00011822,2]
[337577346,1725838956613,195.46,0.00011825,2]
[337577347,1725838956831,195.46,0.00011828,2]
[337577348,1725838957045,195.46,0.00011831,2]
[337577349,1725838957301,195.46,0.00011834,2]
[337577350,1725838957550,195.46,0.00011837,2]
[337577351,1725838957758,195.46,0.00011841,2]
[337577352,1725838958050,195.46,0.00011844,2]
[337577353,1725838958237,195.46,0.00011847,2]
[337577354,1725838958468,195.46,0.0001185,2]
[337577355,1725838958669,195.46,0.00011853,2]
[337577356,1725838958899,195.46,0.00011856,2]
[337577357,1725838959178,195.46,0.00011859,2]
[337577358,1725838959679,195.46,0.00011862,2]
[337577359,1725838959711,195.46,0.00011865,2]
[337577360,1725838959845,195.46,0.00011868,2]
[337577361,1725838960037,195.46,0.00011871,2]
[337577362,1725838960265,195.46,0.00011875,2]
[337577363,1725838976112,2403.39,0.00012305,2]